Cogmind - Beta 15 @@@ ROGUE MODE // 2025.08.20 @ 19:27:46 Player: beans Result: Self-destructed Performance ------------- Evolutions (6) 3000 Regions Visited (11) 2200 Robots Destroyed (93) 465 Value Destroyed (2114) 2114 Prototype IDs (9) 180 Alien Tech Used (0) 0 Bonus (21) 21 TOTAL SCORE: 7980 Bonus ------- High Alert Combat Kills 21 Cogmind --------- Core Integrity 28/1150 Matter 13/300 Energy 100/100 System Corruption 0% Temperature Cool (0) Movement Core (50) Location -4/Upper Caves Parts ------- > --- POWER (2) -------- (None) > --- PROPULSION (6) --- (None) > --- UTILITY (7) ------ (None) > --- WEAPON (4) ------- (None) > --- INVENTORY (5) ---- Mini Assault Cannon Rocket Launcher Plasma Cutter Peak State ------------ > --- POWER ------------ Light Angular Momentum Engine > --- PROPULSION ------- (None) > --- UTILITY ---------- Advanced Heat Sink Heart of Steel > --- WEAPON ----------- Mini Assault Cannon Mini Assault Cannon > --- INVENTORY -------- Beam Rifle Mini Assault Cannon Mini Assault Cannon Rocket Launcher Plasma Cutter [Rating: 45] Favorites ----------- Power Light Angular Momentum Engine Engine Light Angular Momentum Engine Propulsion Aluminum Leg Treads Armored Treads Leg Aluminum Leg Hover Unit Backup Propulsion I Utility Medium Matter Pod Device Advanced Heat Sink Storage Medium Matter Pod Processor Launcher Guidance Computer Protection Improved Light Armor Plating Weapon Mini Assault Cannon Energy Gun Beam Rifle Energy Cannon Advanced Beam Cannon Ballistic Gun Enhanced Autogun Ballistic Cannon Mini Assault Cannon Launcher Mini Grenade Launcher Build | -11 -10 -9 -8 -7 -6 -6 -6 -5 -5 -4 -4 ------- Run | Yrd Mat Mat Mat Fac Fac Low Low Fac Ext Fac Upp Slots Evolved 12 | . . 2 2 2 2 . . 2 . 2 . Power 1 | . . . . . . . . 1 . . . Propulsion 4 | . . . . . 2 . . . . 2 . Utility 5 | . . . 2 2 . . . 1 . . . Weapon 2 | . . 2 . . . . . . . . . Parts Attached 49 | 5 4 12 8 11 2 3 . 3 . 1 . Power 6 | 1 . 1 2 . 1 1 . . . . . Engine 6 | 1 . 1 2 . 1 1 . . . . . Core . | . . . . . . . . . . . . Reactor . | . . . . . . . . . . . . Propulsion 9 | 2 . 1 3 1 . . . 2 . . . Treads 5 | . . 1 3 1 . . . . . . . Leg 3 | 2 . . . . . . . 1 . . . Wheel . | . . . . . . . . . . . . Hover 1 | . . . . . . . . 1 . . . Flight . | . . . . . . . . . . . . Utility 14 | . 1 4 1 4 1 2 . . . 1 . Device 8 | . 1 . 1 3 . 2 . . . 1 . Storage 2 | . . 2 . . . . . . . . . Processor 3 | . . 1 . 1 1 . . . . . . Hackware . | . . . . . . . . . . . . Protection 1 | . . 1 . . . . . . . . . Artifact . | . . . . . . . . . . . . Weapon 20 | 2 3 6 2 6 . . . 1 . . . Energy Gun 7 | 1 2 2 . 1 . . . 1 . . . Energy Cannon 1 | . . 1 . . . . . . . . . Ballistic Gun 4 | 1 . 1 2 . . . . . . . . Ballistic Cannon 4 | . . . . 4 . . . . . . . Launcher 4 | . 1 2 . 1 . . . . . . . Special Weapon . | . . . . . . . . . . . . Impact Weapon . | . . . . . . . . . . . . Slashing Weapon . | . . . . . . . . . . . . Piercing Weapon . | . . . . . . . . . . . . Special Melee Weapon . | . . . . . . . . . . . . Unidentified Prototypes 9 | . . 3 1 2 1 1 . 1 . . . Parts Lost 42 | . 4 4 2 12 . 10 . 8 1 1 . Power 7 | . 1 1 . 1 . 2 . 2 . . . Propulsion 6 | . 1 1 1 1 . 1 . 1 . . . Utility 13 | . . 1 . 5 . 5 . 1 . 1 . Weapon 16 | . 2 1 1 5 . 2 . 4 1 . . Highest Loss Streak 9 | . 2 2 2 9 . 6 . 7 1 1 . To Critical Strikes . | . . . . . . . . . . . . Average Backups 3 | . . 2 4 4 3 4 5 4 3 3 3 Power . | . . . . . . . . . . . . Propulsion . | . . . . . . . . . . . . Utility . | . . . 1 . . . . . . . . Weapon 2 | . . 1 2 2 2 3 4 3 2 2 2 Tool/Special . | . . . . . . . . . . . . Unused Backups 5 | 1 . 1 1 1 . . . . . . 1 Power . | . . . . . . . . . . . . Propulsion 1 | 1 . . . . . . . . . . . Utility 1 | . . . . 1 . . . . . . . Weapon 2 | . . 1 1 . . . . . . . . Tool/Special 1 | . . . . . . . . . . . 1 Average Slot Usage (%) 40 | . 60 43 62 76 59 28 . 20 4 . . Engine 4 | . 7 5 2 6 1 5 . 4 . . . Treads 2 | . . 2 3 13 6 . . . . . . Leg 2 | . 20 . . . . . . . . . . Device 4 | . 4 3 5 8 6 6 . . . . . Storage 4 | . . 9 18 13 6 . . . . . . Processor 1 | . . 2 . 3 11 . . . . . . Protection 2 | . . 2 8 4 . . . 3 . . . Energy Gun 3 | . 17 2 . 5 . 1 . 5 . . . Ballistic Gun 4 | . 7 7 15 7 . . . . . . . Ballistic Cannon 6 | . . . . 5 26 12 . 2 4 . . Launcher 2 | . 1 7 9 5 . . . . . . . Peak Build Rating 45 | 5 5 11 29 39 42 45 1 19 5 14 . Average Rating 19 | 3 4 7 18 33 37 29 1 7 4 3 . On Entrance 10 | . 5 5 7 29 32 42 1 1 5 . . Naked Turns 315 | . . . . . . 4 26 150 6 84 45 Heaviest Build 33 | 7 8 16 26 33 30 30 . 11 4 5 . Greatest Support 48 | 20 20 20 40 48 28 28 3 12 3 3 3 Greatest Overweight (x) 9 | 1 . 5 7 . 1 9 . 3 1 1 . Average Overweight (x) 1 | . . 1 3 . . 5 . . . . . Largest Inventory Capacity 5 | 5 5 5 5 5 5 5 5 5 5 5 5 Average Capacity 5 | 5 5 5 5 5 5 5 5 5 5 5 5 Most Carried 5 | 2 2 5 5 5 4 5 5 5 3 5 3 Average Carried 3 | . . 2 4 4 3 4 5 4 3 3 3 Final Capacity 5 | 5 5 5 5 5 5 5 5 5 5 5 5 Final Carried 5 | . 1 4 5 3 3 5 5 3 3 3 3 Class Distribution -------------------- 65% | Mutant 19% | Gunner 9% | Bomber 5% | Tank Dominant Class ---------------- Mutant | -10/Materials Mutant | -9/Materials Bomber | -8/Materials Gunner | -7/Factory Gunner | -6/Factory Mutant | -6/Lower Caves Mutant | -6/Lower Caves Mutant | -5/Factory Mutant | -5/Extension Mutant | -4/Factory Mutant | -4/Upper Caves Resources | -11 -10 -9 -8 -7 -6 -6 -6 -5 -5 -4 -4 ----------- Run | Yrd Mat Mat Mat Fac Fac Low Low Fac Ext Fac Upp Matter Collected 2259 | 256 240 449 180 723 . 310 . 101 . . . Remotely 249 | . 10 239 . . . . . . . . . Salvage Created 2654 | 70 467 794 308 819 . 125 . 71 . . . Parts 155 | 3 34 57 16 40 . 2 . 3 . . . Haulers Intercepted 7 | . 1 4 1 1 . . . . . . . Recyclers Shooed 7 | . 2 4 . 1 . . . . . . . Parts Field Recycled . | . . . . . . . . . . . . Retrieved Matter . | . . . . . . . . . . . . Parts Self-Destructed 11 | . . . . . . 11 . . . . . Prevented . | . . . . . . . . . . . . Kills | -11 -10 -9 -8 -7 -6 -6 -6 -5 -5 -4 -4 ------- Run | Yrd Mat Mat Mat Fac Fac Low Low Fac Ext Fac Upp Combat Hostiles Destroyed 48 | . 7 16 6 14 . 4 . 1 . . . Guns 14 | . 5 4 1 4 . . . . . . . Cannons 8 | . . . . 4 . 4 . . . . . AOE 25 | . 2 12 5 6 . . . . . . . Classes Destroyed 13 | 1 5 4 . 2 . 1 . . . . . Worker 8 | . 1 1 1 4 . . . 1 . . . Builder 10 | . 3 4 2 1 . . . . . . . Hauler 7 | . 1 4 1 1 . . . . . . . Recycler 11 | 1 1 4 . 5 . . . . . . . Mechanic 1 | . . 1 . . . . . . . . . Operator 1 | . . 1 . . . . . . . . . Watcher 7 | . 2 5 . . . . . . . . . Swarmer 16 | . . 11 . 5 . . . . . . . Grunt 21 | . 7 2 4 5 . 3 . . . . . Brawler 1 | . . . . . . 1 . . . . . Sentry 6 | . . 3 2 1 . . . . . . . Hunter 1 | . . . . 1 . . . . . . . Programmer 3 | . . . . 2 . . . 1 . . . Best Kill Streak 8 | 1 4 8 7 5 . 2 . 1 . . . Combat Bots Only 6 | . 2 6 5 4 . 2 . 1 . . . Max Kills in Single Turn 4 | 1 1 4 1 2 . 1 . 1 . . . Gunslinging 1 | . . . . 1 . . . . . . . Exploded 3 | . 1 3 1 2 . . . . . . . Melee . | . . . . . . . . . . . . Uniques/NPCs Destroyed . | . . . . . . . . . . . . Combat | -11 -10 -9 -8 -7 -6 -6 -6 -5 -5 -4 -4 -------- Run | Yrd Mat Mat Mat Fac Fac Low Low Fac Ext Fac Upp Hostile Shots Fired 635 | . 58 101 6 152 . 124 . 49 36 93 16 Missed 203 | . 22 35 4 51 . 33 . 9 12 31 6 Hits 432 | . 36 66 2 101 . 91 . 40 24 62 10 Melee 11 | . . . . . . 11 . . . . . Projectile 421 | . 36 66 2 101 . 80 . 40 24 62 10 Critical Strikes 12 | . 1 1 . 2 . 2 . 3 . 2 1 Damage Taken 7775 | . 607 732 72 1626 . 2092 . 810 623 1018 195 Core 3089 | . 150 302 . 268 . 444 . 283 520 927 195 Absorbed by Shields . | . . . . . . . . . . . . Ignored by Resistances 10 | . . . . 10 . . . . . . . Core Remaining (%) 55 | 100 40 24 100 61 . . 47 . 19 . . Volleys Fired 247 | 2 58 66 11 68 . 17 . 25 . . . Largest 4 | 2 2 2 3 4 . 4 . 3 . . . Hottest 160 | 60 105 79 80 160 . 160 . 141 . . . Shots Fired 419 | 4 92 93 19 126 . 47 . 37 1 . . Gun 242 | 4 85 67 10 51 . 2 . 23 . . . Cannon 120 | . . . . 60 . 45 . 14 1 . . Launcher 57 | . 7 26 9 15 . . . . . . . Special . | . . . . . . . . . . . . Kinetic 251 | 2 40 51 10 88 . 45 . 14 1 . . Thermal 86 | . 22 16 . 23 . 2 . 23 . . . Explosive 57 | . 7 26 9 15 . . . . . . . Electromagnetic 25 | 2 23 . . . . . . . . . . Robot Hit Streak 10 | 3 7 7 7 6 . 10 . 9 . . . Robot Miss Streak 6 | . 3 3 1 6 . 3 . 3 1 . . Penetration Max . | . . . . . . . . . . . . Secondary Targets 1 | . . . . 1 . . . . . . . Max Gunslinging Chain 1 | . . . . 1 . . . . . . . Shots Hit Robots 211 | 3 50 40 7 62 . 27 . 22 . . . Core Hits 163 | 2 29 56 19 43 . 9 . 5 . . . Critical Kills . | . . . . . . . . . . . . Critical Parts Destroyed . | . . . . . . . . . . . . Critical Strikes 4 | . . . . 1 . 3 . . . . . Blast 4 | . . . . 1 . 3 . . . . . Melee Attacks . | . . . . . . . . . . . . Impact . | . . . . . . . . . . . . Slashing . | . . . . . . . . . . . . Piercing . | . . . . . . . . . . . . Sneak Attacks . | . . . . . . . . . . . . Combat Hostiles . | . . . . . . . . . . . . Follow-up Attacks . | . . . . . . . . . . . . Damage Inflicted 7650 | 39 945 2159 601 2479 . 803 . 597 . 27 . Guns 2273 | 39 627 516 104 678 . 32 . 277 . . . Cannons 1685 | . . . . 594 . 771 . 320 . . . Explosions 3665 | . 318 1643 497 1207 . . . . . . . Melee . | . . . . . . . . . . . . Ramming 27 | . . . . . . . . . . 27 . Kinetic 2699 | 11 213 392 104 888 . 771 . 320 . . . Thermal 1028 | . 211 124 . 384 . 32 . 277 . . . Explosive 3609 | . 262 1643 497 1207 . . . . . . . Electromagnetic 287 | 28 259 . . . . . . . . . . Impact . | . . . . . . . . . . . . Slashing . | . . . . . . . . . . . . Piercing . | . . . . . . . . . . . . Highest Corruption 14 | . . . . 6 . 14 14 8 8 . . Average Corruption 11 | . . . . 5 . 13 14 5 8 . . Corruption Purged . | . . . . . . . . . . . . Corruption Blocked . | . . . . . . . . . . . . Effects 102 | . . . . 14 . 76 1 4 7 . . Message Errors 22 | . . . . 1 . 20 . . 1 . . Matter Fused 17 | . . . . 1 . 13 . . 3 . . Heat Flow Errors 14 | . . . . 2 . 10 . 1 1 . . Energy Discharges 11 | . . . . 3 . 8 . . . . . Parts Rejected 1 | . . . . . . 1 . . . . . Data Loss (minor) 15 | . . . . 2 . 11 1 1 . . . Data Loss (major) 5 | . . . . 2 . 2 . . 1 . . Misfires 8 | . . . . . . 6 . 1 1 . . Alerts 3 | . . . . . . 3 . . . . . Misdirections 1 | . . . . . . 1 . . . . . Weapon Failures 5 | . . . . 3 . 1 . 1 . . . Overload Shots 6 | . . . . 6 . . . . . . . Effects 1 | . . . . 1 . . . . . . . Heat Surge 1 | . . . . 1 . . . . . . . Overflow Damage 225 | . 10 72 12 47 . 37 . 47 . . . Projectiles 100 | . . . . 16 . 37 . 47 . . . Explosions 125 | . 10 72 12 31 . . . . . . . Melee . | . . . . . . . . . . . . Knockbacks 15 | . . . . 6 . 4 . 4 . 1 . Impact 1 | . . . . . . . . . . 1 . Kinetic 14 | . . . . 6 . 4 . 4 . . . Secondary . | . . . . . . . . . . . . Self-Inflicted Damage 349 | . 149 105 40 43 . . . . . 12 . Shots 14 | . 7 4 1 2 . . . . . . . Rammed 5 | . . . . . . . . . . 5 . Targets Rammed 5 | . . . . . . . . . . 5 . Kicked . | . . . . . . . . . . . . Crushed . | . . . . . . . . . . . . Highest Temperature 363 | . 231 66 34 363 . 314 . 174 90 . . Average Temperature 83 | . 58 19 17 142 . 91 . 78 50 . . Received Heat Transfer 1881 | . 273 102 18 387 . 807 . 72 84 63 75 Effects 4 | . . . . 4 . . . . . . . Shutdowns 1 | . . . . 1 . . . . . . . Interference 3 | . . . . 3 . . . . . . . Siege Activations . | . . . . . . . . . . . . Martial Activations . | . . . . . . . . . . . . Shielding Activations . | . . . . . . . . . . . . Robots Disrupted . | . . . . . . . . . . . . Combat Hostiles . | . . . . . . . . . . . . Robots Corrupted . | . . . . . . . . . . . . Combat Hostiles . | . . . . . . . . . . . . Parts Fried . | . . . . . . . . . . . . Impact Corruptions . | . . . . . . . . . . . . Robots Melted 1 | . . . . . . . . 1 . . . Combat Hostiles 1 | . . . . . . . . 1 . . . Parts Melted 8 | . 2 . . 3 . . . 3 . . . Heat Transferred 1880 | . 459 296 . 607 . 74 . 444 . . . Parts Sabotaged . | . . . . . . . . . . . . Parts Stolen . | . . . . . . . . . . . . Parts Stripped . | . . . . . . . . . . . . Power Chain Reactions 1 | . 1 . . . . . . . . . . Alert | -11 -10 -9 -8 -7 -6 -6 -6 -5 -5 -4 -4 ------- Run | Yrd Mat Mat Mat Fac Fac Low Low Fac Ext Fac Upp Maximum Alert Level 2 | . . 2 1 1 . . . . . . . Low Security (%) 72 | 100 100 48 20 83 100 . . 100 100 100 . Level 1 24 | . . 36 79 16 . . . . . . . Level 2 2 | . . 14 . . . . . . . . . Level 3 . | . . . . . . . . . . . . Level 4 . | . . . . . . . . . . . . Level 5 . | . . . . . . . . . . . . High Security . | . . . . . . . . . . . . Max Security . | . . . . . . . . . . . . Peak Influence 498 | 5 135 498 364 288 139 . . 20 15 60 . Initial 203 | . . 32 203 67 139 . . . 1 2 . Average 128 | . 77 198 245 156 117 . . 1 1 15 . Influence Increases 2188 | 5 325 751 244 592 . 135 . 54 22 60 . Destroy 0b10 Robot/C 960 | . 140 320 120 280 . 80 . 20 . . . Destroy 0b10 Robot/NC 225 | 5 40 100 20 55 . . . 5 . . . Destroy Leader 238 | . 46 98 32 52 . 10 . . . . . Successful Hack 17 | . . . . . . . . 10 7 . . Disable Machine 150 | . 60 45 15 30 . . . . . . . Destroy Structure 358 | . 39 158 57 100 . . . 4 . . . Partial Spotted 15 | . . . . . . . . 15 . . . Lose Combat Pursuer 225 | . . 30 . 75 . 45 . . 15 60 . Influence Decreases 2188 | 5 248 346 577 456 196 223 1 50 19 37 30 Entered New Map 607 | . . 45 279 82 146 34 1 . 3 5 12 Time Decay 1279 | 5 208 269 278 254 50 119 . 40 16 22 18 Lost Part 302 | . 40 32 20 120 . 70 . 10 . 10 . Squads Dispatched 9 | . 2 1 1 2 . . . 2 . 1 . Investigation 1 | . 1 . . . . . . . . . . Extermination 2 | . . . . 1 . . . 1 . . . Reinforcement 6 | . 1 1 1 1 . . . 1 . 1 . Assault . | . . . . . . . . . . . . Garrison . | . . . . . . . . . . . . Intercept . | . . . . . . . . . . . . Searches Triggered . | . . . . . . . . . . . . Construction Impeded 1 | . . . 1 . . . . . . . . Haulers Reinforced 1 | . . . . 1 . . . . . . . Active Scanning Responses . | . . . . . . . . . . . . Cargo Convoy Interrupts . | . . . . . . . . . . . . Stealth | -11 -10 -9 -8 -7 -6 -6 -6 -5 -5 -4 -4 --------- Run | Yrd Mat Mat Mat Fac Fac Low Low Fac Ext Fac Upp Distress Signals 6 | . . 3 . 1 . . . . 1 1 . Communications Jammed . | . . . . . . . . . . . . Distress Signals . | . . . . . . . . . . . . Times Spotted 112 | . 12 29 5 22 . 12 . 5 6 18 3 Peak Tracking Total 13 | . 4 5 3 5 . 5 . 3 4 13 3 Tactical Retreats 11 | . . 2 . 4 . 3 . . 1 1 . Traps | -11 -10 -9 -8 -7 -6 -6 -6 -5 -5 -4 -4 ------- Run | Yrd Mat Mat Mat Fac Fac Low Low Fac Ext Fac Upp Traps Triggered 3 | . . . 2 1 . . . . . . . Indirectly . | . . . . . . . . . . . . Trap Hack Attempts . | . . . . . . . . . . . . Triggered . | . . . . . . . . . . . . Disarmed . | . . . . . . . . . . . . Reprogrammed . | . . . . . . . . . . . . Reused . | . . . . . . . . . . . . Traps Extracted . | . . . . . . . . . . . . Installed . | . . . . . . . . . . . . Triggered . | . . . . . . . . . . . . Machines | -11 -10 -9 -8 -7 -6 -6 -6 -5 -5 -4 -4 ---------- Run | Yrd Mat Mat Mat Fac Fac Low Low Fac Ext Fac Upp Machines Disabled 12 | . 6 3 1 2 . . . . . . . Max in Single Turn 2 | . 2 1 1 1 . . . . . . . Machines Repaired . | . . . . . . . . . . . . Machines Dismantled . | . . . . . . . . . . . . Machines Sabotaged . | . . . . . . . . . . . . Overloaded Fab Kills . | . . . . . . . . . . . . Hacking | -11 -10 -9 -8 -7 -6 -6 -6 -5 -5 -4 -4 --------- Run | Yrd Mat Mat Mat Fac Fac Low Low Fac Ext Fac Upp Machines Accessed 4 | . . . . . . 1 . 2 1 . . Terminals 2 | . . . . . . . . 1 1 . . Fabricators . | . . . . . . . . . . . . Repair Stations 1 | . . . . . . . . 1 . . . Recycling Units . | . . . . . . . . . . . . Scanalyzers . | . . . . . . . . . . . . Garrison Access . | . . . . . . . . . . . . Total Hacks 4 | . . . . . . 1 . 2 1 . . Successful 4 | . . . . . . 1 . 2 1 . . Failed . | . . . . . . . . . . . . Catastrophic . | . . . . . . . . . . . . Database Lockouts . | . . . . . . . . . . . . Manual . | . . . . . . . . . . . . Terminals 2 | . . . . . . . . 1 1 . . Fabricators . | . . . . . . . . . . . . Repair Stations 1 | . . . . . . . . 1 . . . Recycling Units . | . . . . . . . . . . . . Scanalyzers . | . . . . . . . . . . . . Garrison Access . | . . . . . . . . . . . . Terminal Hacks 3 | . . . . . . 1 . 1 1 . . Open Door 3 | . . . . . . 1 . 1 1 . . Fabricator Hacks . | . . . . . . . . . . . . Repair Station Hacks 1 | . . . . . . . . 1 . . . Refit 1 | . . . . . . . . 1 . . . Recycling Unit Hacks . | . . . . . . . . . . . . Scanalyzer . | . . . . . . . . . . . . Garrison Access Hacks . | . . . . . . . . . . . . Unauthorized Hacks . | . . . . . . . . . . . . Terminals . | . . . . . . . . . . . . Fabricators . | . . . . . . . . . . . . Repair Stations . | . . . . . . . . . . . . Recycling Units . | . . . . . . . . . . . . Scanalyzers . | . . . . . . . . . . . . Garrison Access . | . . . . . . . . . . . . Data Cores Recovered . | . . . . . . . . . . . . Used . | . . . . . . . . . . . . Hacking Detections 1 | . . . . . . . . 1 . . . Full Trace Events . | . . . . . . . . . . . . Feedback Events . | . . . . . . . . . . . . Feedback Blocked . | . . . . . . . . . . . . Robot Schematics Acquired . | . . . . . . . . . . . . Robots Built . | . . . . . . . . . . . . Authchips . | . . . . . . . . . . . . Time . | . . . . . . . . . . . . Total Robot Build Rating . | . . . . . . . . . . . . Part Schematics Acquired . | . . . . . . . . . . . . Parts Built . | . . . . . . . . . . . . Authchips . | . . . . . . . . . . . . Time . | . . . . . . . . . . . . Total Part Build Rating . | . . . . . . . . . . . . Parts Repaired . | . . . . . . . . . . . . Time . | . . . . . . . . . . . . Parts Recycled . | . . . . . . . . . . . . Recycled Matter . | . . . . . . . . . . . . Retrieved Matter . | . . . . . . . . . . . . Retrieved Components . | . . . . . . . . . . . . Parts Scanalyzed . | . . . . . . . . . . . . Part Schematics Acquired . | . . . . . . . . . . . . Parts Damaged . | . . . . . . . . . . . . Bothacking | -11 -10 -9 -8 -7 -6 -6 -6 -5 -5 -4 -4 ------------ Run | Yrd Mat Mat Mat Fac Fac Low Low Fac Ext Fac Upp Used RIF Installer . | . . . . . . . . . . . . Robots Hacked . | . . . . . . . . . . . . Non-combat . | . . . . . . . . . . . . Combat . | . . . . . . . . . . . . Robot Hacks Applied . | . . . . . . . . . . . . Relay Couplers Released . | . . . . . . . . . . . . Fabnet Peak Effective % . | . . . . . . . . . . . . Robots Rewired . | . . . . . . . . . . . . Allies Hacked . | . . . . . . . . . . . . Hacks Repelled . | . . . . . . . . . . . . Allies | -11 -10 -9 -8 -7 -6 -6 -6 -5 -5 -4 -4 -------- Run | Yrd Mat Mat Mat Fac Fac Low Low Fac Ext Fac Upp Total Allies . | . . . . . . . . . . . . Largest Group . | . . . . . . . . . . . . Highest-Rated Group . | . . . . . . . . . . . . Highest-Rated Ally . | . . . . . . . . . . . . Total Orders . | . . . . . . . . . . . . Ally Attacks . | . . . . . . . . . . . . Total Damage . | . . . . . . . . . . . . Kills . | . . . . . . . . . . . . Allies Corrupted . | . . . . . . . . . . . . Allies Melted . | . . . . . . . . . . . . Intel | -11 -10 -9 -8 -7 -6 -6 -6 -5 -5 -4 -4 ------- Run | Yrd Mat Mat Mat Fac Fac Low Low Fac Ext Fac Upp Active Infowar (turns) 139 | . . 139 . . . . . . . . . Optics 139 | . . 139 . . . . . . . . . Robot Analysis Total . | . . . . . . . . . . . . Derelict Logs Recovered . | . . . . . . . . . . . . Drone Launches . | . . . . . . . . . . . . Drone Recoveries . | . . . . . . . . . . . . Exploration | -11 -10 -9 -8 -7 -6 -6 -6 -5 -5 -4 -4 ------------- Run | Yrd Mat Mat Mat Fac Fac Low Low Fac Ext Fac Upp Turns Passed 5348 | 59 502 649 601 554 103 2028 26 490 187 104 45 Spaces Moved 2684 | 42 283 266 226 216 56 562 46 552 172 175 88 Core 1754 | 18 . 157 159 . . 560 46 379 172 175 88 Treads 430 | . . 89 67 216 56 2 . . . . . Legs 327 | 24 283 20 . . . . . . . . . Wheels . | . . . . . . . . . . . . Hover 173 | . . . . . . . . 173 . . . Flight . | . . . . . . . . . . . . Fastest Speed 50 | 50 120 100 150 160 160 50 50 50 50 50 50 Average Speed 168 | 99 120 174 244 165 172 341 50 75 96 55 50 Slowest Speed 500 | 120 120 300 400 170 240 500 50 200 100 100 50 Overloaded Moves . | . . . . . . . . . . . . Propulsion Burnouts . | . . . . . . . . . . . . Robots Hopped . | . . . . . . . . . . . . Potential Cave-ins . | . . . . . . . . . . . . Cave-ins Triggered . | . . . . . . . . . . . . Exploration Rate (%) 20 | 3 61 35 17 9 1 53 12 13 25 7 13 Regions Visited 11 Branch Regions 4 Pre-discovered Areas . | . . . . . . . . . . . . Known Exits Taken . | . . . . . . . . . . . . Unknown Exits Taken 11 | 1 1 1 1 1 1 1 1 1 1 1 . Scrap Searched . | . . . . . . . . . . . . Spaces Dug 20 | . . 7 13 . . . . . . . . Terrain Destroyed 381 | . 34 170 61 108 . 7 . 1 . . . Melee . | . . . . . . . . . . . . Projectile 24 | . . . . 16 . 7 . 1 . . . AOE 357 | . 34 170 61 92 . . . . . . . Terrain Rammed . | . . . . . . . . . . . . Walls Destroyed . | . . . . . . . . . . . . Machines Disabled . | . . . . . . . . . . . . Actions | -11 -10 -9 -8 -7 -6 -6 -6 -5 -5 -4 -4 --------- Run | Yrd Mat Mat Mat Fac Fac Low Low Fac Ext Fac Upp Total 3147 | 55 351 372 256 313 63 639 48 590 191 181 88 Wait 85 | . . . . 5 4 48 3 5 20 . . Move 2674 | 41 282 265 225 215 55 561 45 551 171 175 88 Hop . | . . . . . . . . . . . . Pick Up 42 | 6 4 15 4 8 2 2 . . . 1 . Fast Attach 18 | . . . 10 2 . 3 . 3 . . . Attach 43 | 5 3 14 2 11 2 3 . 2 . 1 . Detach 9 | . . 4 . 2 . 3 . . . . . Swap 6 | . 4 1 1 . . . . . . . . Drop 19 | 1 . 7 3 2 . 2 . 4 . . . Fire 247 | 2 58 66 11 68 . 17 . 25 . . . Melee . | . . . . . . . . . . . . Ram 4 | . . . . . . . . . . 4 . Kick . | . . . . . . . . . . . . Crush . | . . . . . . . . . . . . Escape Stasis . | . . . . . . . . . . . . Rewire . | . . . . . . . . . . . . Trap . | . . . . . . . . . . . . Miscellaneous . | . . . . . . . . . . . . Route ------- -11/Scrapyard -10/Materials (discovered 2 exits: [*Mat] / [*Min]) -9/Materials (discovered 2 exits: [*Mat] / [*Min]) -8/Materials -7/Factory (discovered 2 exits: [*Fac x2]) -6/Factory -6/Lower Caves -6/Lower Caves -5/Factory -5/Extension -4/Factory -4/Upper Caves History --------- Turn | Location | Event 3 | -11/Scrapyard | Discovered new exit (range 15) 60 | -11/Scrapyard | Entered Materials 196 | -10/Materials | Discovered new exit (range 6) 307 | -10/Materials | Build established: Mutant 409 | -10/Materials | Core integrity fell below 50% 527 | -10/Materials | Discovered new exit (range 16) 562 | -10/Materials | Entered another Materials area 562 | -9/Materials | Evolved 2 slots: Weapon x2 886 | -9/Materials | Discovered new exit (range 9) 964 | -9/Materials | Core integrity fell below 50% 1197 | -9/Materials | Discovered new exit (range 9) 1211 | -9/Materials | Entered another Materials area 1211 | -8/Materials | Evolved 2 slots: Utility x2 1553 | -8/Materials | Build established: Bomber 1586 | -8/Materials | Discovered new exit (range 16) 1812 | -8/Materials | Entered Factory 1812 | -7/Factory | Evolved 2 slots: Utility x2 1997 | -7/Factory | Lost 3 parts (1u2w) 2211 | -7/Factory | Discovered new exit (range 13) 2318 | -7/Factory | Lost 9 parts (1p1n4u3w) 2323 | -7/Factory | Discovered new exit (range 13) 2366 | -7/Factory | Entered another Factory area 2366 | -6/Factory | Evolved 2 slots: Propulsion x2 2416 | -6/Factory | Discovered new exit (range 10) 2469 | -6/Factory | Entered Lower Caves 2528 | -6/Lower Caves | System corruption reached 10% 2558 | -6/Lower Caves | Lost 6 parts (1p1n4u) 2805 | -6/Lower Caves | Build established: Mutant 3088 | -6/Lower Caves | Encountered a Warlord checkpoint 3594 | -6/Lower Caves | Found Prototype Device 3594 | -6/Lower Caves | Identified Heart of Steel 4122 | -6/Lower Caves | Build established: Gunner 4413 | -6/Lower Caves | Spotted B-75 Beast 4483 | -6/Lower Caves | Lost 3 parts (1p2w) 4495 | -6/Lower Caves | Discovered new exit (range 7) 4496 | -6/Lower Caves | Core integrity fell below 50% 4497 | -6/Lower Caves | Entered another Lower Caves area 4512 | -6/Lower Caves | Discovered new exit (range 13) 4523 | -6/Lower Caves | Entered Factory 4523 | -5/Factory | Evolved 2 slots: Power x1, Utility x1 4730 | -5/Factory | Build established: Mutant 4918 | -5/Factory | Lost 7 parts (2p1n1u3w) 5010 | -5/Factory | Discovered new exit (range 5) 5013 | -5/Factory | Entered Extension 5181 | -5/Extension | Spotted B-75 Beast 5190 | -5/Extension | Spotted B-75 Beast 5192 | -5/Extension | Core integrity fell below 50% 5199 | -5/Extension | Discovered new exit (range 3) 5200 | -5/Extension | Core integrity fell below 20% 5200 | -5/Extension | Entered Factory 5200 | -4/Factory | Evolved 2 slots: Propulsion x2 5219 | -4/Factory | Found Quantum Capacitor 5288 | -4/Factory | Core integrity fell below 50% 5298 | -4/Factory | Discovered new exit (range 10) 5304 | -4/Factory | Entered Upper Caves 5305 | -4/Upper Caves | Core integrity fell below 20% 5349 | -4/Upper Caves | Self-destructed Last Messages --------------- O-16 Technician: "IFF HANDSHAKE FAILED. SECURING TERMINAL." ALERT: Hostiles spotted, dispatching reinforcements to Terminal F008. U-05 Engineer works on Construction Platform. U-05 Engineer works on Assembly Bed. Quantum Capacitor destroyed. U-05 Engineer works on Assembly Bed. O-24 Administrator: "IFF HANDSHAKE FAILED. SECURING TERMINAL." EXIT=FOUND U-05 Engineer works on Assembly Bed. Penetrated by Slug. Slammed into Y-64 Sentinel. Slug penetrates Wall. Slammed into Y-64 Sentinel. LOCATION=UNKNOWN GOAL=ESCAPE Critical hit (Burn: +37). Map ----- +----------------------------------------------------+ | ?????????????????????????????????????????????????? | | ?????????????????????????????????????????????????? | | ????????????????????????????????????#####????????? | | ???????????????????????????????????## ##???????? | | ??????????????????????????????????## #???????? | | ??????????????????????????????????# #???????? | | ??????????????????????????????????# ????????? | | ??????????????????????????????????# #????????? | | ?????????????????????????????????## ?????????? | | ????????????????????????????????## #?????????? | | ???????????????????????????????## #?????????? | | ??????????????????????????????## ##????????? | | ??????????????????????????????# ###??????? | | ????????????????????????###???# ##?????? | | ????????????????????????# #??# #?????? | | ????????????????????????# #### #?????? | | ????????????????????????# ### #####?????? | | ????????????????????????# ## ##?????????? | | ???????????????????????????# ###????????? | | ???????????????#???????????# #????????? | | ?????? ?????## ?????????## #????????? | | ?????? ???## ?????????# #????????? | | ??????? ???# ###?###### #????????? | | ???????# ?## ## ## #????????? | | ????#??# ## g ##????????? | | ????# ?# @ ##?????????? | | ?? ## # ## #??????????? | | ?? gg ## ### ##??????????? | | ???? #### #####?## ##???????????? | | ?????## ???## #####???????##????????????? | | ?????? ?## ##??????####??###??????????? | | ??????# ## #######?## #### #??????????? | | ?????????????# ## ### ## #####??????? | | ?????????????## ## ## ##?????? | | ??????????????## #?????? | | ??????????????## #?????? | | ?????????????## ### ##?????? | | ?????????????# #### #?# ##??????? | | ?????????????# ### ##??# #?## ##???????? | | ?????????????## ##?###??# ##??#####????????? | | ??????????????####???????########????????????????? | | ?????????????????????????????????????????????????? | | ?????????????????????????????????????????????????? | | ?????????????????????????????????????????????????? | | ?????????????????????????????????????????????????? | | ?????????????????????????????????????????????????? | | ?????????????????????????????????????????????????? | | ?????????????????????????????????????????????????? | | ?????????????????????????????????????????????????? | | ?????????????????????????????????????????????????? | +----------------------------------------------------+ Best States ------------- Heat Dissipation 56 Energy Generation 18 Energy Capacity 310 Matter Stores 302 Matter Capacity 500 Sight Range 20 Terrain Scan Density 10 Corruption Containment 8 Armor Coverage 160 Resistance: EX 25 Evasion (%) 55 Launcher Accuracy 20 Recoil Reduction 2 Matter Filtering 30 Item Schematics ----------------- None Robot Schematics ------------------ None Fabricated ------------ Nothing Repaired ---------- Nothing Alien Tech Used ----------------- None Achievements -------------- Streaker Challenges ------------ None Game ------ Seed VoltaicQuantumNanoactuators Manual? 0 Play Time 00:32:42 Cumulative 97.4 hours Start 2025.08.20 @ 18:44:34 End 2025.08.20 @ 19:27:46 Sessions 1 Manual Loads 0 Difficulty Rogue Special Mode None Game No. 376 Rogue 376 Adventurer 0 Explorer 0 Win Type - Total 0 Types 0/0/0/0/0/0/0/0/0/0 Lore% 43 Gallery% 40 Achievement% 31 Wizard Run 0 Options --------- Layout 2 ASCII 0 Keyboard 0 Movement Mouse Keybinds 0 Fullscreen 2 Font 24/Smallcaps Map View 50x44 Zoom Use 0% Tactical HUD 0 Map Filters NONE Filters NONE Steam 1 RUN: c73cdac3-b1a8-4aac-9ef4-8bb6875972f3